bitfinex/quotes_BTCUSD_20250114
["timestamp","ask_amount","ask_price","bid_price","bid_amount"]
[1736836722386,0.0008527,95000.0,94999.0,2.03624837]
[1736836722791,0.0008527,95000.0,94999.0,2.03524837]
[1736836723202,0.0008527,95000.0,94999.0,2.03624837]
[1736836733159,0.0008527,95000.0,94999.0,2.11794837]
[1736836733797,0.0008527,95000.0,94999.0,2.11694837]
[1736836734210,0.0008527,95000.0,94999.0,1.90036837]
[1736836734412,0.07771828,95013.0,94999.0,2.28422437]
[1736836734584,0.0769,95011.0,95002.0,0.15]
[1736836734802,0.0769,95011.0,95004.0,0.15]
[1736836735103,0.07771828,95008.0,95006.0,0.15]
[1736836735310,0.07771828,95007.0,95006.0,0.15]
[1736836735509,0.20451828,95007.0,95006.0,0.0328981]
[1736836735649,0.20451828,95007.0,95006.0,0.00592]
[1736836735863,0.41502828,95007.0,95006.0,0.01576371]
[1736836736667,0.41502828,95007.0,95006.0,0.00984371]
[1736836736908,0.41502828,95007.0,95006.0,0.01576371]
[1736836737315,0.41502828,95007.0,95006.0,0.01776371]
[1736836738069,0.41602828,95007.0,95006.0,0.01776371]
[1736836738699,0.41602828,95007.0,95006.0,0.01576371]
[1736836739119,0.41802828,95007.0,95006.0,0.01576371]
[1736836739464,0.41802828,95007.0,95006.0,1.51576371]
[1736836739894,0.41802828,95007.0,95006.0,1.51861228]
[1736836740292,0.41802828,95007.0,95006.0,1.62841612]
[1736836742364,0.41888098,95007.0,95006.0,1.62841612]
[1736836742571,0.41888098,95007.0,95006.0,0.12556755]
[1736836743173,0.41888098,95007.0,95006.0,1.62556755]
[1736836743538,0.41888098,95007.0,95006.0,1.6327641]
[1736836747592,0.41888098,95007.0,95006.0,0.1327641]
[1736836747801,0.41888098,95007.0,95006.0,0.12556755]
[1736836752129,0.20837098,95007.0,95006.0,0.12556755]
[1736836752330,0.15847098,95007.0,95006.0,0.12556755]
[1736836752946,0.15747098,95007.0,95006.0,0.12556755]
[1736836753305,0.15847098,95007.0,95006.0,0.12556755]
[1736836753814,0.15747098,95007.0,95006.0,0.12556755]
[1736836754032,0.15847098,95007.0,95006.0,0.12556755]
[1736836754251,0.15647098,95007.0,95006.0,0.12556755]
[1736836754444,0.15847098,95007.0,95006.0,0.12556755]
[1736836754818,0.08157098,95007.0,95006.0,0.12556755]
[1736836754992,0.08357098,95007.0,95006.0,0.12556755]
[1736836755528,0.08357098,95007.0,95006.0,1.62556755]
[1736836755901,0.08357098,95007.0,95006.0,1.63277031]
[1736836756970,0.08257098,95007.0,95006.0,1.63277031]
[1736836757207,0.08257098,95007.0,95006.0,0.13277031]
[1736836757474,0.07957098,95007.0,95006.0,0.12841612]
[1736836757636,0.08157098,95007.0,95006.0,0.12841612]
[1736836758123,0.07857098,95007.0,95006.0,0.12841612]
[1736836758293,0.08057098,95007.0,95006.0,0.12841612]
[1736836758875,0.0028527,95007.0,95006.0,0.12841612]
[1736836759301,0.0038527,95007.0,95006.0,0.12841612]
[1736836759881,0.0028527,95007.0,95006.0,0.12841612]
[1736836760094,0.0038527,95007.0,95006.0,0.12841612]
[1736836760520,0.0018527,95007.0,95006.0,0.12841612]
[1736836760726,0.0008527,95007.0,95006.0,0.12841612]
[1736836760953,0.0028527,95007.0,95006.0,0.12841612]
[1736836761167,0.0008527,95007.0,95006.0,0.12841612]
[1736836761310,0.0008527,95007.0,95006.0,1.62841612]
[1736836761509,0.0008527,95007.0,95006.0,1.63126469]
[1736836761714,0.0008527,95007.0,95006.0,1.63562101]
[1736836761935,0.0008527,95007.0,95006.0,2.03854301]
[1736836762152,0.0008527,95007.0,95006.0,2.01723701]
[1736836762364,0.0008527,95007.0,95006.0,2.00568401]
[1736836763630,0.0008527,95007.0,95006.0,0.40858701]
[1736836763833,0.0008527,95007.0,95006.0,0.37958001]
[1736836764035,0.0008527,95007.0,95006.0,0.32855101]
[1736836767364,0.0008527,95007.0,95006.0,1.82855101]
[1736836767550,0.0008527,95007.0,95006.0,0.32855101]
[1736836769314,0.0008527,95007.0,95006.0,0.36145877]
[1736836769633,0.0008527,95007.0,95006.0,0.16852877]
[1736836769873,0.0008527,95007.0,95006.0,0.52805388]
[1736836770083,0.0008527,95007.0,95006.0,0.55969088]
[1736836770290,0.0008527,95007.0,95006.0,0.56689435]
[1736836771360,0.0008527,95007.0,95006.0,0.53398659]
[1736836773385,0.0008527,95007.0,95006.0,0.56689635]
[1736836773985,0.0008527,95007.0,95006.0,2.06689635]
[1736836774626,0.0008527,95007.0,95006.0,2.06789635]
[1736836778591,0.0008527,95007.0,95006.0,5.66789635]
[1736836779233,0.0008527,95007.0,95006.0,9.26789635]
[1736836780485,0.0008527,95007.0,95006.0,9.26689635]
[1736836780959,0.0008527,95007.0,95006.0,9.26789635]
[1736836781349,0.0008527,95007.0,95006.0,9.26889635]
[1736836783089,0.0008527,95007.0,95006.0,9.34569635]
[1736836783851,0.0008527,95007.0,95006.0,9.26889635]
[1736836788463,0.0008527,95007.0,95006.0,9.47940935]
[1736836789073,0.0008527,95007.0,95006.0,9.26889635]
[1736836791899,0.0008527,95007.0,95006.0,8.87052935]
[1736836792098,0.0008527,95007.0,95006.0,9.91409935]
[1736836792496,0.0008527,95007.0,95006.0,10.06409935]
[1736836792705,0.0008527,95007.0,95006.0,10.18939935]
[1736836793437,0.95,95012.0,95007.0,0.57102]
[1736836793666,0.95,95012.0,95011.0,0.25980384]
[1736836793857,0.95,95012.0,95011.0,2.8044966]
[1736836794077,0.95,95012.0,95011.0,4.42584071]
[1736836794200,0.95,95012.0,95011.0,4.41537771]
[1736836794629,0.95,95012.0,95011.0,4.42522142]
[1736836794829,0.95,95012.0,95011.0,4.42922142]
[1736836795465,0.95,95012.0,95011.0,4.43122142]
[1736836795988,0.95007197,95012.0,95011.0,4.43122142]
[1736836801192,0.95092477,95012.0,95011.0,4.43122142]
[1736836801448,0.95092477,95012.0,95011.0,3.91253342]
[1736836801638,0.95092477,95012.0,95011.0,3.76322642]
[1736836801864,0.95092477,95012.0,95011.0,2.89128942]
[1736836802090,0.95092477,95012.0,95011.0,2.85437966]
[1736836802480,0.95092477,95012.0,95011.0,2.85837966]
[1736836803085,0.95092477,95012.0,95011.0,2.75484466]
[1736836803633,0.95092477,95012.0,95011.0,2.74884466]
[1736836804048,0.95092477,95012.0,95011.0,2.75384466]
[1736836804610,0.95092477,95012.0,95011.0,2.75184466]
[1736836804964,0.95092477,95012.0,95011.0,1.24984466]
[1736836805366,0.95092477,95012.0,95011.0,1.24884466]
[1736836805715,0.95092477,95012.0,95011.0,2.74884466]
[1736836806630,0.95092477,95012.0,95011.0,2.78172911]
[1736836806867,0.95092477,95012.0,95011.0,2.78162911]
[1736836807773,0.94732477,95012.0,95011.0,2.74874466]
[1736836807976,0.94732477,95012.0,95011.0,2.74974466]
[1736836808130,0.94732477,95012.0,95011.0,3.27953966]
[1736836808498,0.94732477,95012.0,95011.0,3.27853966]
[1736836808676,0.94732477,95012.0,95011.0,3.27953966]
[1736836808880,0.94732477,95012.0,95011.0,3.28053966]
[1736836809236,0.94732477,95012.0,95011.0,3.19874166]
[1736836809437,0.94732477,95012.0,95011.0,2.94748966]
[1736836809630,0.94732477,95012.0,95011.0,2.92113766]
[1736836810421,0.94732477,95012.0,95011.0,2.95403001]
[1736836811364,1.10214305,95012.0,95011.0,2.79779001]
[1736836811576,1.10214305,95012.0,95011.0,0.43626366]
[1736836811795,1.02442477,95012.0,95011.0,0.43626366]
[1736836812401,1.02442477,95012.0,95011.0,0.01619182]
[1736836812402,1.15004305,95012.0,95011.0,0.01619182]
[1736836812824,1.19367418,95012.0,95011.0,0.00403474]
[1736836813235,1.51887418,95012.0,95011.0,0.00403473]
[1736836813438,1.51887418,95012.0,95007.0,0.00179067]
[1736836813439,0.023,95011.0,95007.0,0.00179067]
[1736836813822,0.148,95008.0,95007.0,0.00179067]
[1736836815178,0.162,95008.0,95007.0,0.00269067]
[1736836820473,0.148,95008.0,95007.0,0.00169067]
[1736836820673,0.152,95008.0,95007.0,0.00572372]
[1736836820891,0.161,95008.0,95007.0,0.00672372]
[1736836821236,0.23871828,95008.0,95007.0,0.00672372]
[1736836822804,0.23471828,95008.0,95007.0,0.00672372]
[1736836823008,0.23871828,95008.0,95007.0,0.00672372]
[1736836823152,0.22971828,95008.0,95007.0,0.00572372]
[1736836823563,0.23471828,95008.0,95007.0,0.00672372]
[1736836823758,0.23871828,95008.0,95007.0,0.00672372]
[1736836824217,0.22971828,95008.0,95007.0,0.00572372]
[1736836824437,0.22571828,95008.0,95007.0,0.00572372]
[1736836824598,0.23871828,95008.0,95007.0,0.00672372]
[1736836824975,0.23957098,95008.0,95007.0,0.00672372]
[1736836826138,0.23057098,95008.0,95007.0,0.00572372]
[1736836826294,0.23057098,95008.0,95007.0,0.00662372]
[1736836826497,0.23557098,95008.0,95007.0,0.00662372]
[1736836826716,0.23957098,95008.0,95007.0,0.00662372]
[1736836827620,0.22657098,95008.0,95007.0,0.00562372]
[1736836828052,0.23957098,95008.0,95007.0,0.00662372]
[1736836832031,0.23557098,95008.0,95007.0,0.00513316]
[1736836832788,0.22657098,95008.0,95007.0,0.00413316]
[1736836833199,0.23957098,95008.0,95007.0,0.00513316]
[1736836840359,0.25607486,95008.0,95007.0,0.00513316]
[1736836842072,0.23957098,95008.0,95007.0,0.00513316]
[1736836842473,0.23957098,95008.0,95007.0,0.01500914]
[1736836846732,0.21657098,95008.0,95007.0,0.01500914]
[1736836846904,0.16867098,95008.0,95007.0,0.01500914]
[1736836847281,0.16867098,95008.0,95007.0,0.01785549]
[1736836848094,0.15967098,95008.0,95007.0,0.01685549]
[1736836848420,0.16867098,95008.0,95007.0,0.01785549]
[1736836848611,0.16467098,95008.0,95007.0,0.01785549]
[1736836848971,0.16867098,95008.0,95007.0,0.01785549]
[1736836850405,0.18517448,95008.0,95007.0,0.01785549]
[1736836850814,0.10807448,95008.0,95007.0,0.01785549]
[1736836851212,0.09907448,95008.0,95007.0,0.01685549]
[1736836851391,0.10807448,95008.0,95007.0,0.01785549]
[1736836851863,0.09507448,95008.0,95007.0,0.01685549]
[1736836852043,0.08257098,95008.0,95007.0,0.01685549]
[1736836852243,0.09157098,95008.0,95007.0,0.01775549]
[1736836852425,0.08257098,95008.0,95007.0,0.01675549]
[1736836852636,0.07857098,95008.0,95007.0,0.01675549]
[1736836852820,0.08757098,95008.0,95007.0,0.01775549]
[1736836853030,0.08757098,95008.0,95007.0,0.12755933]
[1736836853224,0.0098527,95008.0,95007.0,0.71569933]
[1736836853604,0.0098527,95008.0,95007.0,2.21569933]
[1736836853772,0.0098527,95008.0,95007.0,1.86437333]
[1736836854185,0.0098527,95008.0,95007.0,0.36437333]
[1736836854587,0.0038527,95008.0,95007.0,0.34793833]
[1736836854787,0.0048527,95008.0,95007.0,0.34793833]
[1736836854990,0.0048527,95008.0,95007.0,0.32263833]
[1736836855194,0.0068527,95008.0,95007.0,0.29733833]
[1736836855497,0.08457098,95008.0,95007.0,0.01675549]
[1736836855713,0.15927098,95008.0,95007.0,0.01675549]
[1736836855918,0.16127098,95008.0,95007.0,0.01675549]
[1736836856092,0.15727098,95008.0,95007.0,0.01675549]
[1736836856254,0.15527098,95008.0,95007.0,0.01675549]
[1736836856459,0.15927098,95008.0,95007.0,0.01675549]
[1736836856659,0.16127098,95008.0,95007.0,0.01675549]
[1736836857075,0.18427098,95008.0,95007.0,0.01675549]
[1736836857592,0.18027098,95008.0,95007.0,0.01675549]
[1736836858026,0.18427098,95008.0,95007.0,0.01675549]
[1736836859288,0.08457098,95008.0,95007.0,0.01675549]
[1736836860417,0.10107422,95008.0,95007.0,0.01675549]
[1736836861654,0.02335594,95008.0,95007.0,0.01675549]
[1736836861965,0.10107422,95008.0,95007.0,0.01675549]
[1736836864781,0.17827422,95008.0,95007.0,0.01675549]
[1736836865185,0.16177098,95008.0,95007.0,0.01675549]
[1736836867523,0.08457098,95008.0,95007.0,0.01675549]
[1736836867721,0.08257098,95008.0,95007.0,0.01675549]
[1736836868096,0.08457098,95008.0,95007.0,0.01675549]
[1736836868296,0.08057098,95008.0,95007.0,0.01675549]
[1736836868931,0.07857098,95008.0,95007.0,0.01675549]
[1736836869100,0.08257098,95008.0,95007.0,0.01675549]
[1736836869302,0.09707396,95008.0,95007.0,0.01675549]
[1736836869916,0.01935568,95008.0,95007.0,0.12655933]
[1736836870102,0.09707396,95008.0,95007.0,0.12546713]
[1736836870307,0.09707396,95008.0,95007.0,0.12437928]
[1736836870595,0.09707396,95008.0,95007.0,0.12500517]
[1736836870892,0.10107396,95008.0,95007.0,0.0147422]
[1736836871410,0.16177098,95008.0,95007.0,0.0147422]
[1736836871617,0.20797098,95008.0,95007.0,0.0147422]
[1736836873451,0.20797098,95008.0,95007.0,0.01653287]
[1736836877064,0.08457098,95008.0,95007.0,0.01653287]
[1736836877304,0.08457098,95008.0,95007.0,0.12633671]
[1736836877601,0.08457098,95008.0,95007.0,0.26987671]
[1736836877816,0.08457098,95008.0,95007.0,1.76987671]
[1736836878444,0.08257098,95008.0,95007.0,1.76987671]
[1736836878650,0.29007898,95008.0,95007.0,1.76987671]
[1736836878847,0.29307898,95008.0,95007.0,1.76987671]
[1736836879163,0.28907898,95008.0,95007.0,1.76987671]
[1736836879368,0.08257098,95008.0,95007.0,1.76987671]
[1736836879781,0.07857098,95008.0,95007.0,1.63237671]
[1736836880002,0.07857098,95008.0,95007.0,2.28717371]
[1736836880498,0.08057098,95008.0,95007.0,2.28717371]
[1736836880707,0.29107898,95008.0,95007.0,2.28717371]
[1736836881101,0.28907898,95008.0,95007.0,2.28717371]
[1736836881295,0.29307898,95008.0,95007.0,2.28717371]
[1736836881897,0.29207898,95008.0,95007.0,2.28717371]
[1736836882106,0.29107898,95008.0,95007.0,2.28717371]
[1736836882490,0.29507898,95008.0,95007.0,2.28717371]
[1736836882689,0.29107898,95008.0,95007.0,2.28717371]
[1736836883104,0.29407898,95008.0,95007.0,2.28717371]
[1736836883607,0.29207898,95008.0,95007.0,2.28717371]
[1736836884444,0.29307898,95008.0,95007.0,2.28717371]
[1736836884827,0.29007898,95008.0,95007.0,2.28717371]
[1736836885237,0.29407898,95008.0,95007.0,2.28717371]
[1736836885452,0.29007898,95008.0,95007.0,2.28717371]
[1736836885981,0.29307898,95008.0,95007.0,2.28717371]
[1736836886687,0.08257098,95008.0,95007.0,2.28717371]
[1736836886893,0.0048527,95008.0,95007.0,2.43717371]
[1736836887139,0.0048527,95008.0,95007.0,2.54805666]
[1736836887350,0.0038527,95008.0,95007.0,2.54805666]
[1736836887718,0.0048527,95008.0,95007.0,2.54805666]
[1736836888138,0.0008527,95008.0,95007.0,2.54805666]
[1736836888340,0.0008527,95008.0,95007.0,2.54905666]
[1736836888513,0.0008527,95008.0,95007.0,2.55105666]
[1736836888722,0.0008527,95008.0,95007.0,2.55005666]
[1736836888951,0.0008527,95008.0,95007.0,2.55405666]
[1736836889123,0.0008527,95008.0,95007.0,2.55005666]
[1736836889583,0.0008527,95008.0,95007.0,2.55405666]
[1736836889763,0.0008527,95008.0,95007.0,2.55005666]
[1736836890404,0.0008527,95008.0,95007.0,2.54805666]
[1736836890639,0.0008527,95008.0,95007.0,2.55005666]
[1736836891049,0.0008527,95008.0,95007.0,1.89325966]
[1736836891208,0.0008527,95008.0,95007.0,4.24600766]
[1736836891410,0.0008527,95008.0,95007.0,4.24400766]
[1736836891984,0.0008527,95008.0,95007.0,4.24600766]
[1736836892144,0.0008527,95008.0,95007.0,4.29200766]
[1736836892336,0.0008527,95008.0,95007.0,4.29600766]
[1736836894067,0.0008527,95008.0,95007.0,4.29400766]
[1736836894302,0.0008527,95008.0,95007.0,4.29000766]
[1736836894473,0.0008527,95008.0,95007.0,4.29600766]
[1736836894889,0.0008527,95008.0,95007.0,4.29000766]
[1736836895292,0.0008527,95008.0,95007.0,4.29300766]
[1736836895646,0.84817747,95012.0,95008.0,0.571016]
[1736836895849,0.84817747,95012.0,95011.0,0.25980384]
[1736836896055,0.84817747,95012.0,95011.0,3.66336582]
[1736836896448,0.84817747,95012.0,95011.0,3.74226582]
[1736836896858,0.82968149,95012.0,95011.0,3.74226582]
[1736836897057,0.82968149,95012.0,95011.0,3.77752551]
[1736836897642,0.82968149,95012.0,95011.0,5.28812935]
[1736836898218,0.82968149,95012.0,95011.0,4.90894035]
[1736836898399,0.83068149,95012.0,95011.0,4.90894035]
[1736836898610,0.83068149,95012.0,95011.0,4.87413144]
[1736836898758,0.83068149,95012.0,95011.0,4.87813144]
[1736836898759,0.82968149,95012.0,95011.0,4.87813144]
[1736836899109,0.83068149,95012.0,95011.0,4.88713144]
[1736836899688,0.83068149,95012.0,95011.0,4.88996893]
[1736836902368,0.83068149,95012.0,95011.0,1.87747193]
[1736836902579,0.83068149,95012.0,95011.0,5.27115793]
[1736836902988,0.82968149,95012.0,95011.0,5.26215793]
[1736836903311,0.82968149,95012.0,95011.0,5.25815793]
[1736836903506,0.82968149,95012.0,95011.0,5.26215793]
[1736836903798,0.80596915,95012.0,95011.0,4.91234393]
[1736836904276,0.80596915,95012.0,95011.0,4.92134393]
[1736836905361,0.80596915,95012.0,95011.0,4.73308993]
[1736836907268,0.80596915,95012.0,95011.0,4.69884093]
[1736836907475,0.80596915,95012.0,95011.0,4.46644093]
[1736836908514,0.80596915,95012.0,95011.0,4.49923311]
[1736836912556,0.80596915,95012.0,95011.0,4.49523311]
[1736836912876,0.80596915,95012.0,95011.0,4.49923311]
[1736836913802,0.80596915,95012.0,95011.0,4.49023311]
[1736836913934,0.80596915,95012.0,95011.0,4.49923311]
[1736836915124,0.75854226,95012.0,95011.0,4.49923311]
[1736836916825,0.75854226,95012.0,95011.0,4.13497811]
[1736836917563,0.75854226,95012.0,95011.0,4.13097811]
[1736836917704,0.75854226,95012.0,95011.0,4.12197811]
[1736836918132,0.75854226,95012.0,95011.0,4.13097811]
[1736836918565,0.75854226,95012.0,95011.0,4.12473811]
[1736836918787,0.75854226,95012.0,95011.0,4.13097811]
[1736836918934,0.75854226,95012.0,95011.0,4.13497811]
[1736836919142,0.75854226,95012.0,95011.0,4.13676878]
[1736836919574,0.75854226,95012.0,95011.0,4.13276878]
[1736836919750,0.75854226,95012.0,95011.0,4.13676878]
[1736836920097,0.75854226,95012.0,95011.0,4.12776878]
[1736836920367,0.75854226,95012.0,95011.0,4.12376878]
[1736836920567,0.75854226,95012.0,95011.0,4.13676878]
[1736836921192,0.75854226,95012.0,95011.0,4.12776878]
[1736836921511,0.75854226,95012.0,95011.0,4.12152878]
[1736836921682,0.75854226,95012.0,95011.0,3.08039978]
[1736836922027,0.75854226,95012.0,95011.0,3.07639978]
[1736836922250,0.75854226,95012.0,95011.0,3.07939978]
[1736836922505,0.75854226,95012.0,95011.0,3.07139978]
[1736836922900,0.75854226,95012.0,95011.0,3.06839978]
[1736836923536,0.75854226,95012.0,95011.0,3.07139978]
[1736836923773,0.75854226,95012.0,95011.0,3.08039978]
[1736836924015,0.75854226,95012.0,95011.0,3.07139978]
[1736836924392,0.75854226,95012.0,95011.0,3.07939978]
[1736836925169,0.75854226,95012.0,95011.0,3.06839978]
[1736836925547,0.75854226,95012.0,95011.0,3.07539978]
[1736836926042,0.75854226,95012.0,95011.0,3.07339978]
[1736836926259,0.75854226,95012.0,95011.0,3.07539978]
[1736836926857,0.75854226,95012.0,95011.0,3.07039978]
[1736836927344,0.75854226,95012.0,95011.0,3.07339978]
[1736836927475,0.75854226,95012.0,95011.0,3.06839978]
[1736836927873,0.75854226,95012.0,95011.0,3.07339978]
[1736836928747,0.75854226,95012.0,95011.0,3.07539978]
[1736836931475,0.75854226,95012.0,95011.0,3.06915978]
[1736836931672,0.75854226,95012.0,95011.0,2.30800778]
[1736836931673,0.80524226,95012.0,95011.0,2.30800778]
[1736836932232,0.80524226,95012.0,95011.0,2.30600778]
[1736836932572,0.80524226,95012.0,95011.0,2.30800778]
[1736836933316,0.80524226,95012.0,95011.0,2.30300778]
[1736836933523,0.80524226,95012.0,95011.0,2.30800778]
[1736836937075,0.75854226,95012.0,95011.0,2.30800778]
[1736836939028,0.73482811,95012.0,95011.0,2.30800778]
[1736836949572,0.73482811,95012.0,95011.0,1.83339478]
[1736836949772,0.73482811,95012.0,95011.0,5.22708078]
[1736836951872,0.73482811,95012.0,95011.0,5.20124278]
[1736836952973,0.73482811,95012.0,95011.0,4.98710478]
[1736836953178,0.73482811,95012.0,95011.0,4.89010478]
[1736836953983,0.73482811,95012.0,95011.0,4.80310478]
[1736836954382,0.73482811,95012.0,95011.0,4.64201278]
[1736836954788,0.73482811,95012.0,95011.0,4.49101278]
[1736836956169,0.73482811,95012.0,95011.0,4.43398778]
[1736836959221,0.70189372,95012.0,95011.0,4.25740878]
[1736836961248,0.70189372,95012.0,95011.0,4.25540878]
[1736836961476,0.70189372,95012.0,95011.0,1.82639478]
[1736836961710,0.70189372,95012.0,95011.0,5.22308078]
[1736836962047,0.70189372,95012.0,95011.0,5.22008078]
[1736836962250,0.70189372,95012.0,95011.0,5.22908078]
[1736836962451,0.70189372,95012.0,95011.0,5.23308078]
[1736836963060,0.70189372,95012.0,95011.0,5.17706778]
[1736836963625,0.70189372,95012.0,95011.0,5.16806778]
[1736836963920,0.70189372,95012.0,95011.0,5.17306778]
[1736836964064,0.70189372,95012.0,95011.0,5.16406778]
[1736836964276,0.70189372,95012.0,95011.0,5.16806778]
[1736836964565,0.70189372,95012.0,95011.0,5.17706778]
[1736836964830,0.70189372,95012.0,95011.0,5.17306778]
[1736836964998,0.70189372,95012.0,95011.0,5.17706778]
[1736836965399,0.70189372,95012.0,95011.0,5.16806778]
[1736836965630,0.70189372,95012.0,95011.0,5.17306778]
[1736836965829,0.70189372,95012.0,95011.0,5.17706778]
[1736836966387,0.70189372,95012.0,95011.0,5.21921078]
[1736836966589,0.70189372,95012.0,95011.0,5.02479478]
[1736836966922,0.70189372,95012.0,95011.0,5.01579478]
[1736836967131,0.69773115,95012.0,95011.0,5.01179478]
[1736836967346,0.53440351,95012.0,95011.0,5.2485765]
[1736836967555,0.48223702,95012.0,95011.0,5.2970765]
[1736836967780,0.48223702,95012.0,95011.0,5.2920765]
[1736836968177,0.32245105,95012.0,95011.0,5.3010765]
[1736836968378,0.0765,95049.0,95037.0,0.420887]
[1736836968551,0.0765,95049.0,95039.0,0.25980384]
[1736836968753,0.00183909,95040.0,95039.0,3.65348984]
[1736836969164,0.00183909,95040.0,95039.0,5.15348984]
[1736836969559,0.12763909,95040.0,95039.0,2.18842984]
[1736836969764,0.20535737,95040.0,95039.0,0.23467784]
[1736836970029,0.20535737,95040.0,95039.0,0.24455382]
[1736836970764,0.20535737,95040.0,95039.0,0.24555382]
[1736836971407,0.20535737,95040.0,95039.0,0.24455382]
[1736836971717,0.20535737,95040.0,95039.0,0.23951382]
[1736836971938,0.20535737,95040.0,95039.0,0.24555382]
[1736836972071,0.20535737,95040.0,95039.0,0.24727296]
[1736836972274,0.20535737,95040.0,95039.0,0.24991721]
[1736836972520,0.20735737,95040.0,95039.0,0.24991721]
[1736836972723,0.20726477,95040.0,95039.0,0.24991721]
[1736836972920,0.20726477,95040.0,95039.0,0.24387721]
[1736836973124,0.20726477,95040.0,95039.0,0.01523937]
[1736836973482,0.20726477,95040.0,95039.0,0.00987598]
[1736836974147,0.20526477,95040.0,95039.0,0.00987598]
[1736836974482,0.20726477,95040.0,95039.0,0.00987598]
[1736836976770,0.20526477,95040.0,95039.0,0.00987598]
[1736836976953,0.20726477,95040.0,95039.0,0.00987598]
[1736836977555,0.20526477,95040.0,95039.0,0.00987598]
[1736836978095,0.20726477,95040.0,95039.0,0.00987598]
[1736836980335,0.20726477,95040.0,95039.0,0.11967982]
[1736836980698,0.20726477,95040.0,95039.0,1.61967982]
[1736836980996,0.20726477,95040.0,95039.0,1.78419957]
[1736836982091,0.2180569,95040.0,95039.0,1.78419957]
[1736836982200,0.2180569,95040.0,95039.0,1.62504457]
[1736836982991,0.2160569,95040.0,95039.0,1.62504457]
[1736836983174,0.2180569,95040.0,95039.0,1.62504457]
[1736836984030,0.2180569,95040.0,95039.0,1.63108457]
[1736836984416,0.20726477,95040.0,95039.0,1.63108457]
[1736836986442,0.21827584,95040.0,95039.0,1.63108457]
[1736836988714,0.21827584,95040.0,95039.0,1.97124957]
[1736836989720,0.21827584,95040.0,95039.0,1.97303982]
[1736836990715,0.07984649,95040.0,95039.0,1.97303982]
[1736836990925,0.15756477,95040.0,95039.0,1.97303982]
[1736836991173,0.00374649,95040.0,95039.0,1.97303982]
[1736836991975,0.00374649,95040.0,95039.0,1.98386104]
[1736836992220,0.00174649,95040.0,95039.0,1.98386104]
[1736836992600,0.002,95040.0,95039.0,2.19430004]
[1736836993116,0.00179067,95042.0,95039.0,2.43759886]
[1736836993301,0.00179067,95042.0,95041.0,0.10980384]
[1736836993479,0.00179067,95042.0,95041.0,2.39066466]
[1736836994062,0.00179067,95042.0,95041.0,2.54066466]
[1736836994348,0.00179067,95042.0,95041.0,2.55054064]
[1736836994908,0.00179067,95042.0,95041.0,2.55354064]
[1736836995701,0.00179067,95042.0,95041.0,0.30653964]
[1736836995887,0.00179067,95042.0,95041.0,3.70022564]
[1736836996083,0.00179067,95042.0,95041.0,5.20022564]
[1736836997088,0.00179067,95042.0,95041.0,5.20286546]
[1736836999494,0.00179067,95042.0,95041.0,5.17000564]
[1736837002269,0.00179067,95042.0,95041.0,5.17272736]
[1736837007775,0.0004,95049.0,95042.0,0.360433]
[1736837008129,0.0004,95049.0,95048.0,0.10980384]
[1736837008260,0.0004,95049.0,95048.0,2.82778784]
[1736837008462,0.0004,95049.0,95048.0,4.32878884]
[1736837008713,0.0004,95049.0,95048.0,4.20881884]
[1736837009751,0.0004,95049.0,95048.0,4.21869482]
[1736837011613,0.0004,95049.0,95048.0,4.22131914]
[1736837012557,0.0004,95049.0,95048.0,4.08132014]
[1736837013718,0.0004,95049.0,95048.0,4.08732014]
[1736837014367,0.0004,95049.0,95048.0,4.03522614]
[1736837014711,0.0012525,95049.0,95048.0,4.03522614]
[1736837015155,0.0012525,95049.0,95048.0,4.00348614]
[1736837016365,0.0012525,95049.0,95048.0,4.15348614]
[1736837016793,0.07397078,95060.0,95049.0,0.15]
[1736837017011,0.07397078,95060.0,95050.0,2.26568817]
[1736837017231,0.07397078,95060.0,95051.0,1.653668]
[1736837017559,0.07397078,95060.0,95052.0,0.10980384]
[1736837017794,0.07397078,95060.0,95053.0,3.260797]
[1736837017998,0.07597078,95060.0,95054.0,0.10980384]
[1736837018227,0.07597078,95060.0,95054.0,3.10859284]
[1736837018538,0.07397078,95060.0,95055.0,3.072615]
[1736837018763,0.07397078,95060.0,95056.0,1.55780684]
[1736837018985,0.07597078,95060.0,95057.0,1.509309]
[1736837019188,0.07597078,95060.0,95058.0,0.10980384]
[1736837019322,0.07597078,95060.0,95059.0,1.5]
[1736837019515,0.07597078,95060.0,95059.0,1.60980384]
[1736837019726,0.07597078,95060.0,95059.0,2.85605684]
[1736837020112,0.07397078,95060.0,95059.0,2.85605684]
[1736837020336,0.07497078,95060.0,95059.0,2.85605684]
[1736837020565,0.07497078,95060.0,95059.0,2.86853279]
[1736837020788,0.07397078,95060.0,95059.0,2.86853279]
[1736837021213,0.07497078,95060.0,95059.0,2.86853279]
[1736837023092,0.07497078,95060.0,95059.0,2.87949922]
[1736837023719,0.07497078,95060.0,95059.0,2.88549922]
[1736837024521,0.07497078,95060.0,95059.0,2.79178622]
[1736837024899,0.07497078,95060.0,95059.0,2.77071522]
[1736837025696,0.07497078,95060.0,95059.0,2.52212822]
[1736837027229,0.05126591,95060.0,95059.0,2.52212822]
[1736837027620,0.05126591,95060.0,95059.0,2.40479979]
[1736837027778,0.05126591,95060.0,95059.0,2.26304379]
[1736837031305,0.05126591,95060.0,95059.0,0.76304379]
[1736837031788,0.05126591,95060.0,95059.0,1.87095879]
[1736837032015,0.05126591,95060.0,95059.0,1.8734689]
[1736837033407,0.05026591,95060.0,95059.0,1.8734689]
[1736837034727,0.05026591,95060.0,95059.0,0.3734689]
[1736837035281,0.05026591,95060.0,95059.0,1.8734689]
[1736837039031,0.05026591,95060.0,95059.0,1.87525873]
[1736837039945,0.33945891,95060.0,95059.0,1.75945489]
[1736837040267,0.33945891,95060.0,95059.0,0.12657973]
[1736837040442,0.05026591,95060.0,95059.0,0.12657973]
[1736837040667,0.05026591,95060.0,95059.0,3.49096673]
[1736837040876,0.05026591,95060.0,95059.0,3.48581773]
[1736837041569,0.05026591,95060.0,95059.0,3.11545773]
[1736837045385,0.05026591,95060.0,95059.0,2.65169373]
[1736837046552,0.05126591,95060.0,95059.0,2.65169373]
[1736837046758,0.05126591,95060.0,95059.0,2.35810373]
[1736837047142,0.05026591,95060.0,95059.0,2.35810373]
[1736837047341,0.05226591,95060.0,95059.0,2.35810373]
[1736837047605,0.05226591,95060.0,95059.0,1.83062373]
[1736837048924,0.05026591,95060.0,95059.0,1.83062373]
[1736837049290,0.05226591,95060.0,95059.0,1.83062373]
[1736837051788,0.05311821,95060.0,95059.0,1.83062373]
[1736837051980,0.05111821,95060.0,95059.0,1.83062373]
[1736837052277,0.05311821,95060.0,95059.0,1.83062373]
[1736837053484,0.05311821,95060.0,95059.0,0.01677589]
[1736837053485,0.17971821,95060.0,95059.0,0.01677589]
[1736837053708,0.18171821,95060.0,95059.0,0.01677589]
[1736837053948,0.19821332,95060.0,95059.0,0.01166581]
[1736837055073,0.19621332,95060.0,95059.0,0.01166581]
[1736837055307,0.19821332,95060.0,95059.0,0.01166581]
[1736837055542,0.19821332,95060.0,95059.0,0.00178983]
[1736837055776,0.19621332,95060.0,95059.0,0.00178983]